bitfinex/quotes_SOLUSD_20240616
["timestamp","ask_amount","ask_price","bid_price","bid_amount"]
[1718562060463,27.8375,148.15,148.12,7.4936]
[1718562060862,27.8375,148.15,148.12,14.9874]
[1718562061162,27.8374,148.15,148.13,2.4977]
[1718562061362,22.4974,148.15,148.12,14.9874]
[1718562061564,32.8323,148.15,148.12,2.4978]
[1718562062088,40.3247,148.15,148.12,2.4978]
[1718562062489,40.3247,148.15,148.11,12.4901]
[1718562062490,2.4976,148.14,148.11,14.988]
[1718562063292,5.34,148.13,148.1,12.4911]
[1718562063580,5.34,148.13,148.11,2.4981]
[1718562063790,5.34,148.13,148.09,12.4919]
[1718562063791,12.8335,148.13,148.09,12.4919]
[1718562063965,5.34,148.12,148.09,12.4919]
[1718562064574,5.34,148.12,148.1,7.4948]
[1718562064768,7.4935,148.13,148.1,7.4948]
[1718562064769,2.4979,148.13,148.1,7.4948]
[1718562064990,5.34,148.13,148.1,12.4913]
[1718562066589,12.8335,148.13,148.09,4.9967]
[1718562066800,2.4981,148.11,148.08,7.4956]
[1718562067094,2.4981,148.11,148.1,2.4982]
[1718562067095,5.34,148.11,148.1,2.4982]
[1718562067300,12.8336,148.13,148.1,2.4982]
[1718562067464,7.8379,148.13,148.1,7.4948]
[1718562067669,5.34,148.13,148.11,7.4942]
[1718562067979,5.34,148.14,148.11,4.9961]
[1718562068178,5.34,148.14,148.11,12.4904]
[1718562068692,7.8376,148.14,148.11,7.4941]
[1718562069972,12.8328,148.14,148.11,7.4941]
[1718562070298,2.4978,148.13,148.1,2.4981]
[1718562070493,2.4978,148.13,148.1,7.4946]
[1718562070811,2.4978,148.13,148.1,7.4947]
[1718562071314,30.3168,148.14,148.1,12.4914]
[1718562071898,30.3168,148.14,148.1,14.9895]
[1718562072291,2.4978,148.13,148.1,14.9895]
[1718562072496,2.4978,148.13,148.1,7.4947]
[1718562074392,7.4934,148.13,148.1,7.4947]
[1718562075387,7.4934,148.13,148.1,2.4981]
[1718562076186,7.4934,148.13,148.1,7.4947]
[1718562076899,7.4934,148.13,148.1,2.4981]
[1718562077297,14.9868,148.13,148.1,2.4981]
[1718562077899,7.4934,148.13,148.1,2.4981]
[1718562078800,12.489,148.13,148.1,2.4981]
[1718562079003,14.9869,148.13,148.1,2.4981]
[1718562079981,27.816,148.16,148.1,5.34]
[1718562080299,2.4975,148.15,148.13,2.4978]
[1718562080504,2.4975,148.15,148.12,14.9875]
[1718562080874,24.9733,148.16,148.12,12.4896]
[1718562081282,6.5431,148.19,148.15,2.4973]
[1718562081283,7.491,148.18,148.15,2.4973]
[1718562081482,12.8306,148.19,148.16,7.4915]
[1718562081682,7.4906,148.19,148.16,14.9833]
[1718562081911,12.8306,148.19,148.16,7.4915]
[1718562082281,7.8369,148.19,148.16,14.9833]
[1718562082484,12.8304,148.19,148.16,14.9833]
[1718562082689,7.8369,148.19,148.16,12.4862]
[1718562082909,12.8305,148.19,148.16,7.4916]
[1718562083880,20.3208,148.19,148.16,7.4916]
[1718562084077,24.9667,148.2,148.17,4.9942]
[1718562084282,10.3336,148.19,148.16,7.4914]
[1718562084503,2.4969,148.18,148.16,2.4971]
[1718562084701,12.831,148.18,148.15,7.4921]
[1718562085007,14.982,148.18,148.15,7.4922]
[1718562085205,12.8309,148.18,148.15,7.4922]
[1718562085402,7.837,148.18,148.15,14.9845]
[1718562085592,7.837,148.18,148.16,2.4972]
[1718562086708,5.34,148.18,148.16,2.4972]
[1718562086885,22.47,148.2,148.13,5.34]
[1718562087090,5.34,148.19,148.13,5.34]
[1718562087307,2.4967,148.2,148.15,5.34]
[1718562087507,2.4967,148.2,148.18,2.4969]
[1718562088301,2.4967,148.2,148.17,14.9821]
[1718562088612,3.3271485,148.21,148.18,12.4845]
[1718562088819,8.6671485,148.21,148.18,12.4845]
[1718562088988,0.8306485,148.21,148.18,12.4845]
[1718562089194,0.8306485,148.21,148.19,2.4967]
[1718562089406,0.8306485,148.21,148.2,7.4898]
[1718562089609,0.8306485,148.21,148.2,2.4966]
[1718562089816,0.8306485,148.21,148.19,14.9801]
[1718562090190,0.8306485,148.21,148.19,12.4835]
[1718562090389,0.8306485,148.21,148.19,14.9801]
[1718562090608,0.8306485,148.21,148.19,12.4835]
[1718562091018,0.8306485,148.21,148.19,7.4899]
[1718562091514,0.8306485,148.21,148.19,2.4966]
[1718562092185,0.8306485,148.21,148.19,7.49]
[1718562092389,0.8306485,148.21,148.2,2.4966]
[1718562093398,0.8306485,148.21,148.19,2.4967]
[1718562093711,0.8306485,148.21,148.19,7.4902]
[1718562093889,0.8306485,148.21,148.19,12.4838]
[1718562094096,0.8306485,148.21,148.19,12.4837]
[1718562094513,0.8306485,148.21,148.2,14.9796]
[1718562095222,0.8306485,148.21,148.2,7.4898]
[1718562095997,0.8306485,148.21,148.2,14.9796]
[1718562096226,0.8306485,148.21,148.2,7.4898]
[1718562097425,0.8306485,148.21,148.2,2.4966]
[1718562097649,0.8306485,148.21,148.18,12.4843]
[1718562098136,0.8306485,148.21,148.19,2.4966]
[1718562099337,0.8306485,148.21,148.19,7.4901]
[1718562100336,0.8306485,148.21,148.19,14.9804]
[1718562101133,0.8306485,148.21,148.15,0.17]
[1718562101339,0.8306485,148.21,148.19,7.49]
[1718562101631,0.8306485,148.21,148.19,14.9803]
[1718562102209,0.8306485,148.21,148.2,2.4966]
[1718562102938,0.8306485,148.21,148.2,7.4898]
[1718562103146,2.4968,148.19,148.16,2.4971]
[1718562103446,7.8367,148.2,148.17,2.497]
[1718562103663,5.34,148.2,148.17,2.4969]
[1718562103819,5.34,148.2,148.17,12.4854]
[1718562105817,0.8306485,148.21,148.2,7.4898]
[1718562106033,0.8306485,148.21,148.2,2.4966]
[1718562106545,0.8306485,148.21,148.19,7.4899]
[1718562106747,0.8306485,148.21,148.2,2.4966]
[1718562108023,0.8306485,148.21,148.2,7.4898]
[1718562108446,0.8306485,148.21,148.2,14.9796]
[1718562109151,0.8306485,148.21,148.2,7.4898]
[1718562109531,0.8306485,148.21,148.19,7.4901]
[1718562110037,0.3306485,148.21,148.2,2.4966]
[1718562110836,0.3306485,148.21,148.2,7.4898]
[1718562111247,0.3306485,148.21,148.2,2.4966]
[1718562111452,0.3306485,148.21,148.2,7.4898]
[1718562112252,0.3306485,148.21,148.2,2.4966]
[1718562112449,0.3306485,148.21,148.2,7.4898]
[1718562112979,0.3306485,148.21,148.2,14.9796]
[1718562114775,0.3306485,148.21,148.2,7.4898]
[1718562115164,0.3306485,148.21,148.2,14.9796]
[1718562123685,0.3306485,148.21,148.2,20.3196]
[1718562125477,0.3306485,148.21,148.2,20.9996]
[1718562126879,0.3306485,148.21,148.2,15.6596]
[1718562127086,0.3306485,148.21,148.2,35.6596]
[1718562130271,0.3306485,148.21,148.2,40.9996]
[1718562144512,0.3306485,148.21,148.2,15.6596]
[1718562144914,0.3306485,148.21,148.2,20.9996]
[1718562147223,0.3306485,148.21,148.2,15.6596]
[1718562147625,0.3306485,148.21,148.2,20.9996]
[1718562158123,0.3306485,148.21,148.14,43.77764149]
[1718562158124,0.3306485,148.21,148.19,7.4901]
[1718562158427,0.3306485,148.21,148.12,5.397583]
[1718562158428,2.8270485,148.21,148.12,5.397583]
[1718562158633,0.3306485,148.21,148.18,2.4969]
[1718562158841,5.6706485,148.21,148.18,2.4969]
[1718562159022,5.6706485,148.21,148.18,7.4908]
[1718562160146,5.6706485,148.21,148.18,12.4847]
[1718562160345,0.3306485,148.21,148.18,12.4847]
[1718562160929,0.3306485,148.21,148.18,14.9815]
[1718562161150,0.3306485,148.21,148.18,12.4847]
[1718562161846,0.3306485,148.21,148.18,14.9815]
[1718562162161,0.3306485,148.21,148.19,2.4967]
[1718562164158,0.3306485,148.21,148.19,7.4902]
[1718562164335,0.3306485,148.21,148.19,2.4967]
[1718562164946,0.3306485,148.21,148.2,7.4898]
[1718562165131,0.3306485,148.21,148.2,14.9796]
[1718562166952,0.3306485,148.21,148.2,7.4898]
[1718562168358,0.3306485,148.21,148.2,14.9796]
[1718562170741,0.3306485,148.21,148.2,23.08169087]
[1718562171860,0.3306485,148.21,148.2,14.9796]
[1718562172860,0.3306485,148.21,148.2,7.4898]
[1718562173061,0.3306485,148.21,148.2,14.9796]
[1718562173447,0.3306485,148.21,148.2,7.4898]
[1718562174358,0.3306485,148.21,148.19,14.98]
[1718562174563,5.6706485,148.21,148.19,2.4967]
[1718562174856,5.6706485,148.21,148.18,14.9812]
[1718562175054,5.6706485,148.21,148.18,12.4844]
[1718562175462,5.6706485,148.21,148.18,7.4907]
[1718562176765,5.6706485,148.21,148.19,14.9803]
[1718562177369,5.6706485,148.21,148.19,12.4837]
[1718562177560,5.6706485,148.21,148.19,2.4966]
[1718562177763,5.6706485,148.21,148.19,7.4901]
[1718562178139,5.6706485,148.21,148.18,12.4841]
[1718562178354,21.6198,148.2,148.17,7.4912]
[1718562178762,24.1164,148.2,148.17,2.497]
[1718562178947,5.34,148.19,148.16,12.4858]
[1718562179151,7.8367,148.19,148.16,2.4971]
[1718562179365,38.7497,148.2,148.16,7.4916]
[1718562179366,5.34,148.18,148.16,7.4916]
[1718562179758,5.34,148.18,148.15,12.4867]
[1718562180062,5.34,148.18,148.15,12.4871]
[1718562181072,5.34,148.18,148.15,7.4921]
[1718562181695,12.8308,148.18,148.14,14.985]
[1718562181980,5.34,148.17,148.13,12.4883]
[1718562182264,5.34,148.17,148.13,7.493]
[1718562182265,5.34,148.16,148.13,7.493]
[1718562182470,5.34,148.16,148.12,7.4935]
[1718562182471,7.8373,148.16,148.12,12.4893]
[1718562182677,5.34,148.15,148.12,7.4936]
[1718562182970,5.34,148.15,148.12,12.4895]
[1718562183161,5.34,148.15,148.12,4.9958]
[1718562183473,5.34,148.15,148.12,12.4896]
[1718562183974,10.3351,148.15,148.11,2.4981]
[1718562184177,10.3351,148.15,148.11,4.9961]
[1718562184178,5.34,148.14,148.11,4.9961]
[1718562184385,5.34,148.14,148.11,12.4902]
[1718562185053,5.34,148.14,148.12,7.4937]
[1718562185674,5.34,148.14,148.11,14.9882]
[1718562185875,5.34,148.14,148.11,7.4941]
[1718562186180,5.34,148.13,148.11,2.498]
[1718562186659,5.34,148.13,148.11,7.4942]
[1718562186845,5.34,148.13,148.11,14.9886]
[1718562187048,5.34,148.14,148.11,14.9886]
[1718562187751,5.34,148.14,148.12,2.4979]
[1718562188455,5.34,148.14,148.11,2.498]
[1718562188761,7.8376,148.14,148.1,14.9891]
[1718562189141,7.8376,148.14,148.11,2.4981]
[1718562189342,5.34,148.13,148.11,2.4981]
[1718562189942,12.8334,148.13,148.09,2.4983]
[1718562190169,12.8334,148.13,148.02,8.2141]
[1718562190170,7.8378,148.13,148.1,2.4982]
[1718562190580,5.34,148.12,148.1,2.4982]
[1718562191077,4.995,148.15,148.11,2.498]
[1718562191249,5.34,148.13,148.11,2.498]
[1718562192172,21.5177,148.16,148.14,2.4974]
[1718562192948,21.5177,148.16,148.11,5.34]
[1718562193151,29.355,148.16,148.1,5.34]
[1718562193474,34.3496,148.16,148.1,5.34]
[1718562193678,5.34,148.15,148.09,5.85]
[1718562193867,7.8375,148.15,148.09,5.85]
[1718562194073,5.34,148.14,148.08,0.17]
[1718562194267,5.34,148.14,148.11,2.4979]
[1718562194758,5.34,148.14,148.12,2.4979]
[1718562194947,5.34,148.14,148.11,2.498]
[1718562196186,5.34,148.14,148.12,2.4979]
[1718562196790,5.34,148.14,148.11,2.498]
[1718562197175,5.34,148.14,148.12,2.4979]
[1718562197857,29.0098,148.16,148.12,2.4979]
[1718562198060,26.8577,148.16,148.1,5.34]
[1718562198283,26.8577,148.16,148.08,0.68]
[1718562198284,15.468,148.16,148.14,2.4975]
[1718562198668,15.468,148.16,148.14,2.4974]
[1718562202799,15.468,148.16,148.12,5.34]
[1718562202972,15.468,148.16,148.11,5.68]
[1718562205387,15.468,148.16,148.13,2.4976]
[1718562208771,15.468,148.16,148.14,2.4976]
[1718562209270,15.468,148.16,148.11,5.68]
[1718562209492,15.468,148.16,148.14,2.4976]
[1718562210369,15.468,148.16,148.12,5.34]
[1718562210703,15.468,148.16,148.14,2.4975]
[1718562211272,15.468,148.16,148.13,2.4976]
[1718562216602,17.9653,148.16,148.13,2.4976]
[1718562217303,15.468,148.16,148.13,2.4976]
[1718562218999,15.468,148.16,148.14,2.4975]
[1718562225002,15.468,148.16,148.12,5.68]
[1718562225217,15.468,148.16,148.13,0.34]
[1718562227406,7.8369,148.18,148.13,5.68]
[1718562227988,2.4969,148.18,148.13,5.68]
[1718562228187,7.4908,148.18,148.13,5.68]
[1718562229615,21.7263,148.19,148.14,0.17]
[1718562229795,2.8270485,148.21,148.16,5.34]
[1718562230180,2.8270485,148.21,148.17,0.48252904]
[1718562230604,0.3306485,148.21,148.16,5.34]
[1718562230805,2.8271485,148.21,148.17,0.34]
[1718562231801,0.3306485,148.21,148.17,0.34]
[1718562231994,0.3306485,148.21,148.17,6.1630479]
[1718562233521,0.3306485,148.21,148.17,5.68]
[1718562233921,2.8270485,148.21,148.17,0.34]
[1718562234234,2.4966,148.2,148.17,0.34]
[1718562234395,2.4966,148.2,148.16,5.51]
[1718562234600,30.6355485,148.21,148.16,5.51]
[1718562234913,13.1602485,148.21,148.16,5.51]
[1718562235531,20.6496485,148.21,148.16,5.51]
[1718562235831,13.1602485,148.21,148.16,5.51]
[1718562239626,20.6495485,148.21,148.16,5.51]
[1718562239829,18.1530485,148.21,148.16,5.51]
[1718562240128,13.1602485,148.21,148.16,5.51]
[1718562240328,8.1671485,148.21,148.16,0.17]
[1718562240634,8.1671485,148.21,148.16,0.51]
[1718562241508,8.1671485,148.21,148.16,5.85]
[1718562243332,5.6706485,148.21,148.16,5.85]
[1718562243631,8.1671485,148.21,148.16,5.85]
[1718562248738,8.1671485,148.21,148.16,0.51]
[1718562249836,5.6706485,148.21,148.16,0.51]
[1718562251940,0.3306485,148.21,148.16,0.51]
[1718562252114,5.6706485,148.21,148.16,0.51]
[1718562253256,0.3306485,148.21,148.16,0.51]
[1718562253540,0.3306485,148.21,148.19,5.34]
[1718562255944,0.3306485,148.21,148.17,5.68]
[1718562256150,0.3306485,148.21,148.18,0.34]
[1718562256928,8.1671485,148.21,148.15,8.2141]
[1718562257128,13.1600485,148.21,148.15,13.5541]
[1718562257328,8.1671485,148.21,148.15,13.5541]
[1718562257626,5.6706485,148.21,148.15,13.5541]
[1718562258052,5.6706485,148.21,148.16,0.34]
[1718562258426,5.6706485,148.21,148.16,5.68]
[1718562268358,5.6706485,148.21,148.16,0.34]
[1718562269840,0.3306485,148.21,148.16,5.68]
[1718562270294,5.34,148.19,148.13,20.0]
[1718562270582,5.34,148.19,148.13,25.34]
[1718562270952,2.4966,148.2,148.14,5.34]
[1718562270953,5.34,148.2,148.14,5.34]
[1718562272263,5.34,148.19,148.14,5.34]
[1718562272777,22.7995485,148.21,148.14,5.34]
[1718562272778,0.3306485,148.21,148.14,5.34]
[1718562272979,5.34,148.2,148.14,5.34]
[1718562273165,25.6706485,148.21,148.15,5.34]
[1718562274086,28.1670485,148.21,148.15,5.34]
[1718562274661,33.1599485,148.21,148.15,5.34]
[1718562274989,0.3306485,148.21,148.15,5.34]
[1718562275172,0.3306485,148.21,148.16,5.85]
[1718562275374,0.3306485,148.21,148.17,5.34]
[1718562278889,0.3306485,148.21,148.16,0.51]
[1718562289582,0.3306485,148.21,148.19,5.34]
[1718562289891,0.3306485,148.21,148.2,5.34]
[1718562290094,0.3306485,148.21,148.2,25.85]
[1718562290486,0.3306485,148.21,148.2,26.02]
[1718562297211,0.3306485,148.21,148.2,20.68]
[1718562297507,0.3306485,148.21,148.2,26.02]
[1718562298614,0.3306485,148.21,148.2,25.85]
[1718562298819,0.3306485,148.21,148.2,0.51]
[1718562300021,0.3306485,148.21,148.2,5.85]
[1718562300209,0.3306485,148.21,148.2,5.34]
[1718562300517,0.3306485,148.21,148.19,5.34]
[1718562300815,0.3306485,148.21,148.18,0.51]
[1718562301005,0.3306485,148.21,148.18,5.68]
[1718562301212,0.3306485,148.21,148.18,0.34]
[1718562301725,0.3306485,148.21,148.18,5.68]
[1718562302019,0.3306485,148.21,148.19,5.34]
[1718562314004,0.3306485,148.21,148.2,5.68]
[1718562316917,0.3306485,148.21,148.2,0.34]
[1718562329231,0.3306485,148.21,148.17,20.0]
[1718562330535,0.3306485,148.21,148.18,0.17]
[1718562330743,0.3306485,148.21,148.18,0.34]
[1718562332944,0.3306485,148.21,148.18,0.69933864]
[1718562333823,0.3306485,148.21,148.18,6.21774828]
[1718562335848,0.3306485,148.21,148.19,0.34]
[1718562336036,0.3306485,148.21,148.19,0.17]
[1718562336237,0.3306485,148.21,148.19,0.34]
[1718562336632,0.3306485,148.21,148.19,0.17]
[1718562337231,0.3306485,148.21,148.18,5.51]
[1718562337949,0.3306485,148.21,148.18,0.17]
[1718562338246,0.3306485,148.21,148.17,20.51]
[1718562338447,5.6706485,148.21,148.15,5.34]
[1718562338646,5.6706485,148.21,148.13,14.31295896]
[1718562338647,0.3306485,148.21,148.16,5.51]
[1718562338853,0.3306485,148.21,148.16,5.34]
[1718562338854,5.6706485,148.21,148.16,5.34]
[1718562339161,5.6706485,148.21,148.15,5.34]
[1718562339526,5.6706485,148.21,148.16,5.51]
[1718562340160,0.3306485,148.21,148.16,5.51]
[1718562340331,0.3306485,148.21,148.16,0.17]
[1718562340530,0.3306485,148.21,148.17,5.34]
[1718562341852,0.3306485,148.21,148.16,6.82704939]
[1718562343851,5.6706485,148.21,148.16,0.17]
[1718562344056,5.6706485,148.21,148.15,5.85]
[1718562345159,0.3306485,148.21,148.16,5.34]
[1718562349438,0.3306485,148.21,148.17,0.17]
[1718562349640,0.3306485,148.21,148.18,5.34]
[1718562350959,0.3306485,148.21,148.19,0.17]
[1718562351260,0.3306485,148.21,148.2,5.51]
[1718562351469,0.3306485,148.21,148.2,26.02]
[1718562351656,0.3306485,148.21,148.2,27.36897522]
[1718562352463,0.3306485,148.21,148.2,28.92987468]
[1718562352672,0.3306485,148.21,148.2,27.58089946]
[1718562354945,0.3306485,148.21,148.2,22.24089946]
[1718562355146,0.3306485,148.21,148.2,27.58089946]
[1718562358957,0.3306485,148.21,148.2,26.02]
[1718562360952,0.3306485,148.21,148.2,26.86786821]
[1718562361344,0.3306485,148.21,148.2,20.68]
[1718562361570,0.3306485,148.21,148.2,26.02]
[1718562362646,0.3306485,148.21,148.2,20.68]
[1718562362842,0.3306485,148.21,148.2,26.02]
[1718562365386,0.3306485,148.21,148.2,25.68]
[1718562365545,0.3306485,148.21,148.2,20.0]
[1718562365749,0.3306485,148.21,148.19,5.34]
[1718562366948,0.3306485,148.21,148.2,0.68]
[1718562369263,0.3306485,148.21,148.2,6.02]
[1718562373771,0.3306485,148.21,148.2,7.36909493]
[1718562375566,0.3306485,148.21,148.2,6.02]
[1718562375795,0.3306485,148.21,148.2,0.68]
[1718562375970,0.3306485,148.21,148.2,6.02]
[1718562385793,0.3306485,148.21,148.2,0.68]
[1718562387301,0.3306485,148.21,148.2,6.02]
[1718562387872,0.3306485,148.21,148.2,7.36742619]
[1718562390270,22.8875,148.29,148.2,27.36742619]
[1718562390471,22.8875,148.29,148.22,0.17]
[1718562390777,22.8875,148.29,148.24,5.34]
[1718562391003,22.8875,148.29,148.25,0.17]
[1718562391309,25.3826,148.29,148.25,2.02780866]
[1718562392992,25.3826,148.29,148.25,0.68]
[1718562393186,22.8875,148.29,148.25,0.68]
[1718562393406,25.3826,148.29,148.25,0.68]
[1718562393699,22.8875,148.29,148.25,0.68]
[1718562395701,25.3826,148.29,148.25,0.68]
[1718562396208,22.8875,148.29,148.25,0.68]
[1718562396502,16.6647,148.29,148.26,5.34]
[1718562396701,16.6647,148.29,148.27,5.68]
[1718562396903,8.7757,148.32,148.27,5.34]
[1718562396904,25.4404,148.32,148.27,5.34]
[1718562397209,25.4404,148.32,148.28,0.34]
[1718562397514,22.9457,148.32,148.28,5.68]
[1718562398194,22.4457,148.32,148.28,5.68]
[1718562399403,24.9403,148.32,148.28,0.34]
[1718562399607,29.9295,148.32,148.28,0.34]
[1718562399796,24.9403,148.32,148.28,0.34]
[1718562400179,22.4457,148.32,148.28,0.34]
[1718562400793,22.4457,148.32,148.28,5.68]
[1718562401106,24.9403,148.32,148.28,0.17]
[1718562402184,22.4457,148.32,148.28,0.17]
[1718562405591,22.4457,148.32,148.28,5.85]
[1718562405794,16.6647,148.32,148.28,5.85]
[1718562405995,16.6647,148.32,148.29,0.17]
[1718562407390,16.6647,148.32,148.29,0.51]
[1718562407918,29.3842485,148.35,148.3,5.34]
[1718562407919,6.9361485,148.35,148.3,5.34]
[1718562408223,6.9361485,148.35,148.31,0.34]
[1718562408407,0.8306485,148.35,148.31,5.68]
[1718562408801,0.8306485,148.35,148.32,1.01475845]
[1718562410914,0.8306485,148.35,148.33,0.17]
[1718562411591,0.8306485,148.35,148.32,0.34]
[1718562411793,0.8306485,148.35,148.33,0.17]
[1718562412414,0.8306485,148.35,148.32,0.17]
[1718562412599,0.8306485,148.35,148.32,0.34]
[1718562412600,3.3247485,148.35,148.32,0.34]
[1718562413213,8.3129485,148.35,148.31,0.17]
[1718562413514,8.6647485,148.35,148.31,0.17]
[1718562413722,13.6529485,148.35,148.31,0.17]
[1718562413927,8.6647485,148.35,148.31,0.17]
[1718562414137,28.6176485,148.35,148.3,0.34]
[1718562414307,27.7886,148.34,148.28,25.34]
[1718562414496,5.34,148.34,148.28,25.34]
[1718562415400,7.8342,148.34,148.28,25.34]
[1718562415607,2.4944,148.33,148.29,0.51]
[1718562415821,20.3057,148.34,148.29,0.34]
[1718562416326,12.8228,148.34,148.29,0.34]
[1718562416730,7.8343,148.34,148.29,0.34]
[1718562416908,5.34,148.34,148.29,0.34]
[1718562417428,3.3248485,148.35,148.29,0.34]
[1718562417606,5.34,148.34,148.29,0.34]
[1718562423141,7.8342,148.34,148.28,25.68]
[1718562423331,5.34,148.32,148.26,0.17]
[1718562423655,5.34,148.32,148.26,6.02]
[1718562424224,0.8306485,148.35,148.28,5.34]
[1718562424542,0.8306485,148.35,148.29,0.51]
[1718562424543,5.34,148.34,148.29,0.51]
[1718562424733,6.1706485,148.35,148.29,5.85]
[1718562424944,8.6647485,148.35,148.29,5.85]
[1718562425245,13.6529485,148.35,148.29,5.85]
[1718562425444,21.1352485,148.35,148.29,5.85]
[1718562425646,13.6529485,148.35,148.29,5.85]
[1718562426548,3.3247485,148.35,148.29,5.85]
[1718562426846,28.6647485,148.35,148.29,5.85]
[1718562427016,8.6647485,148.35,148.29,5.85]
[1718562427219,13.6529485,148.35,148.29,5.85]
[1718562427648,2.4942,148.34,148.29,5.85]
[1718562429020,28.6175485,148.35,148.29,5.85]
[1718562429219,2.4942,148.34,148.29,5.85]
[1718562429823,7.4827,148.34,148.29,5.85]
[1718562430722,14.9655,148.34,148.29,5.85]
[1718562432153,7.4827,148.34,148.29,5.85]
[1718562432650,14.9655,148.34,148.29,5.85]
[1718562433547,2.4944,148.33,148.29,5.85]
[1718562438640,0.8306485,148.35,148.3,1.51852326]
[1718562438843,23.2777485,148.35,148.31,0.51]
[1718562439025,2.4942,148.34,148.31,0.51]
[1718562439740,13.6531485,148.35,148.31,0.51]
[1718562439944,21.1354485,148.35,148.31,0.51]
[1718562440424,13.6531485,148.35,148.31,0.51]
[1718562440948,8.6648485,148.35,148.31,0.51]
[1718562442126,18.6413485,148.35,148.31,0.34]
[1718562442442,18.6413485,148.35,148.29,5.51]
[1718562442750,21.1355485,148.35,148.3,0.51]
[1718562443128,13.6531485,148.35,148.3,0.51]
[1718562443438,2.4943,148.34,148.3,0.17]
[1718562443647,2.4943,148.34,148.29,6.02]
[1718562443648,7.8342,148.34,148.29,6.02]
[1718562445048,5.34,148.34,148.29,6.02]
[1718562447053,5.34,148.34,148.29,0.68]
[1718562450039,0.8306485,148.35,148.29,0.68]
[1718562450360,6.1706485,148.35,148.29,6.02]
[1718562451365,8.6647485,148.35,148.29,6.02]
[1718562452268,6.1706485,148.35,148.29,6.02]
[1718562452559,8.6647485,148.35,148.29,6.02]
[1718562453066,6.1706485,148.35,148.29,6.02]
[1718562453265,8.6647485,148.35,148.29,0.68]
[1718562453469,5.34,148.32,148.24,52.15774209]
[1718562453773,5.34,148.32,148.26,5.34]
[1718562454065,5.34,148.32,148.27,5.34]
[1718562454265,0.8306485,148.35,148.29,5.34]
[1718562454482,26.1706485,148.35,148.29,5.34]
[1718562455142,28.6647485,148.35,148.29,5.34]
[1718562455348,8.6647485,148.35,148.29,5.34]
[1718562456457,13.6529485,148.35,148.29,5.34]
[1718562456667,21.1352485,148.35,148.29,5.34]
[1718562457667,2.4942,148.34,148.29,5.34]
[1718562457967,20.3055,148.34,148.28,0.34]
[1718562458173,12.8227,148.34,148.29,5.34]
[1718562460177,20.3055,148.34,148.29,5.34]
[1718562460977,2.4944,148.33,148.29,5.34]
[1718562461575,30.2828,148.34,148.29,5.34]
[1718562462976,2.4944,148.33,148.29,5.34]
[1718562466986,7.4833,148.33,148.29,5.34]
[1718562467880,9.9785,148.32,148.29,5.34]
[1718562468069,7.484,148.32,148.27,5.34]
[1718562468261,27.7906,148.33,148.27,5.34]
[1718562468462,2.4946,148.32,148.28,5.34]
[1718562468882,24.9451,148.33,148.28,5.34]
[1718562469554,2.4946,148.32,148.29,0.17]
[1718562469758,24.9451,148.33,148.29,0.17]
[1718562470867,7.4835,148.33,148.29,0.17]
[1718562473692,2.4945,148.33,148.29,0.17]
[1718562474497,7.4833,148.33,148.29,0.17]
[1718562474882,2.4945,148.33,148.29,0.17]
[1718562475799,30.2836,148.34,148.29,0.17]
[1718562476408,27.7892,148.34,148.29,0.17]